bitfinex-derivatives/quotes_ETHF0:USTF0_20240904
["timestamp","ask_amount","ask_price","bid_price","bid_amount"]
[1725466227996,0.40658,2459.4,2459.0,3.2078]
[1725466228198,0.7197,2459.8,2459.0,3.2078]
[1725466228399,0.40657,2459.5,2459.0,3.2078]
[1725466228599,0.4065,2459.9,2459.3,3.2078]
[1725466228799,0.40652,2459.8,2459.4,1.51339942]
[1725466228995,0.40655,2459.6,2459.4,1.51339942]
[1725466229197,0.40655,2459.6,2459.4,0.00609942]
[1725466229697,0.40656,2459.5,2459.4,0.00609942]
[1725466230096,4.47216,2459.5,2459.4,0.00609942]
[1725466230698,3.9687,2460.1,2459.4,0.00609942]
[1725466230895,4.98487,2460.1,2459.4,0.00609942]
[1725466231094,1.77707,2460.1,2459.4,0.00609942]
[1725466231300,1.97567457,2460.1,2459.4,0.00609942]
[1725466231601,0.40655,2459.6,2459.4,0.00609942]
[1725466231802,0.40656,2459.5,2459.4,0.00609942]
[1725466232001,2.16587,2459.5,2459.4,0.00609942]
[1725466232203,11.82491,2459.5,2458.6,3.2078]
[1725466232399,0.7429,2459.5,2458.6,3.2078]
[1725466232702,0.40659,2459.4,2458.9,3.2078]
[1725466232905,0.7429,2459.5,2458.9,3.2078]
[1725466233099,1.01621,2460.0,2459.2,3.2078]
[1725466233292,0.40649,2460.0,2459.4,0.00609942]
[1725466233508,0.00609942,2460.2,2459.4,0.00609942]
[1725466233509,0.00609942,2460.2,2459.9,3.2078]
[1725466234300,0.00609942,2460.2,2460.1,0.40646]
[1725466234507,0.00609942,2460.2,2460.1,1.14356]
[1725466234695,0.40634,2460.9,2460.3,0.40642]
[1725466234895,0.97967469,2461.1,2460.5,3.2078]
[1725466234896,0.40635,2460.8,2460.5,3.2078]
[1725466235099,0.40634,2460.9,2460.5,3.2078]
[1725466235303,0.7708,2461.8,2460.5,3.61419]
[1725466235304,0.40629,2461.2,2460.5,3.61419]
[1725466235504,0.19962827,2461.4,2460.8,3.2078]
[1725466235704,0.00609942,2461.3,2460.9,0.00609942]
[1725466236000,0.40631,2461.0,2460.9,0.00609942]
[1725466236209,0.40631,2461.0,2460.9,3.21389942]
[1725466236393,0.40631,2461.0,2460.9,0.00609942]
[1725466238510,4.0632,2461.0,2460.5,3.2078]
[1725466238705,1.01579,2461.0,2460.5,3.2078]
[1725466239003,0.40638,2460.6,2460.5,3.2078]
[1725466239210,0.7658,2461.0,2460.4,3.2078]
[1725466239399,0.40642,2460.4,2460.1,0.7371]
[1725466239597,0.40641,2460.5,2460.1,0.7371]
[1725466239910,3.82583,2460.9,2460.1,3.9449]
[1725466239911,0.40642,2460.4,2460.1,3.9449]
[1725466240210,1.01592,2460.7,2460.1,3.2078]
[1725466240406,1.01592,2460.7,2460.0,0.75879942]
[1725466240407,0.40646,2460.1,2460.0,0.00609942]
[1725466240905,1.42262,2460.1,2460.0,0.00609942]
[1725466241212,4.0648,2460.1,2460.0,0.00609942]
[1725466241406,0.40645,2460.2,2460.0,0.00609942]
[1725466241908,0.40646,2460.1,2460.0,3.21389942]
[1725466242204,0.40645,2460.2,2460.0,0.00609942]
[1725466242506,1.01603,2460.5,2460.0,0.00609942]
[1725466243215,0.40641,2460.4,2460.0,3.21389942]
[1725466243410,0.40646,2460.1,2460.0,0.00609942]
[1725466243603,0.40645,2460.2,2460.0,0.00609942]
[1725466243912,1.42262,2460.1,2460.0,0.00609942]
[1725466244107,0.40646,2460.1,2460.0,0.00609942]
[1725466245009,5.48742,2460.1,2460.0,0.00609942]
[1725466245601,11.48742,2460.1,2460.0,0.00609942]
[1725466245998,0.40655,2459.6,2459.4,3.2078]
[1725466246608,0.40656,2459.5,2459.4,3.2078]
[1725466246813,0.40656,2459.6,2459.4,3.2078]
[1725466247014,0.00609942,2459.7,2459.4,3.2078]
[1725466247609,0.41262942,2459.7,2459.4,3.2078]
[1725466248110,0.00609942,2459.7,2459.4,3.2078]
[1725466248303,0.41263942,2459.7,2459.4,3.2078]
[1725466248508,0.40655,2459.6,2459.4,3.2078]
[1725466249810,0.00609942,2459.7,2459.4,3.2078]
[1725466250417,0.41262942,2459.7,2459.4,3.2078]
[1725466250617,0.00609942,2459.7,2459.4,3.2078]
[1725466250819,0.41262942,2459.7,2459.4,3.2078]
[1725466251009,0.40655,2459.6,2459.4,3.2078]
[1725466251410,0.41263942,2459.7,2459.4,3.2078]
[1725466251612,0.00609942,2459.7,2459.4,3.2078]
[1725466252213,0.00609942,2459.7,2459.4,3.61438]
[1725466252416,0.00609942,2459.7,2459.5,0.40655]
[1725466252614,0.41263942,2459.7,2459.5,0.765]
[1725466252921,0.00609942,2459.7,2459.5,0.765]
[1725466253413,0.40654,2459.6,2459.5,0.765]
[1725466253809,0.40654,2459.6,2459.3,0.75559942]
[1725466253810,7.08301581,2459.6,2459.3,0.00609942]
[1725466254014,5.08201,2459.5,2458.8,4.7516]
[1725466254218,0.40661,2459.2,2458.8,4.7516]
[1725466254425,1.01641,2459.5,2458.8,4.7516]
[1725466254426,0.40665,2459.0,2458.8,1.5438]
[1725466254717,1.0165,2459.3,2458.5,3.2078]
[1725466254718,1.01653,2459.2,2458.5,3.2078]
[1725466254915,0.40665,2459.0,2458.6,0.00410812]
[1725466255325,0.40665,2459.0,2458.8,3.2078]
[1725466255621,0.40666,2458.9,2458.8,3.2078]
[1725466257921,0.40669,2458.7,2458.6,0.00410812]
[1725466258224,0.40679,2458.1,2458.0,3.2078]
[1725466258421,0.7289,2458.6,2457.7,0.7212]
[1725466258629,0.40678,2458.2,2458.1,3.2078]
[1725466259125,0.7289,2458.6,2458.1,3.2078]
[1725466259431,0.40674,2458.5,2458.1,3.2078]
[1725466259720,0.40674,2458.5,2458.4,3.2078]
[1725466259923,0.40676,2458.4,2458.0,3.2078]
[1725466260129,0.40676,2458.4,2458.3,3.2078]
[1725466260326,0.73499942,2458.6,2457.7,1.12805]
[1725466260327,0.73499942,2458.6,2457.8,3.2078]
[1725466260522,0.00609942,2458.6,2458.2,3.2078]
[1725466260725,0.00609942,2458.6,2458.5,3.2078]
[1725466261123,0.00609942,2458.6,2458.5,7.275]
[1725466261321,0.00609942,2458.6,2458.4,0.7395]
[1725466261516,0.00609942,2458.6,2458.3,0.7835]
[1725466261725,0.00609942,2458.6,2458.5,3.2078]
[1725466261726,0.41281942,2458.6,2458.5,3.2078]
[1725466262528,0.00609942,2458.6,2458.5,3.2078]
[1725466263222,0.41280942,2458.6,2458.5,3.2078]
[1725466263732,0.00609942,2458.6,2458.5,3.2078]
[1725466264124,0.00609942,2458.6,2458.0,3.9473]
[1725466264319,0.00609942,2458.6,2458.3,3.2078]
[1725466264529,0.40675,2458.4,2458.0,0.7395]
[1725466264721,0.40676,2458.3,2458.0,0.7395]
[1725466264931,0.40676,2458.3,2458.2,3.2078]
[1725466265120,0.40679,2458.2,2457.8,3.2078]
[1725466265319,0.40677,2458.3,2457.8,3.2078]
[1725466265522,0.40678,2458.2,2457.8,3.2078]
[1725466265723,0.40678,2458.2,2458.1,3.2078]
[1725466265924,0.40677,2458.3,2458.1,3.2078]
[1725466266228,1.77945,2458.5,2458.2,3.2078]
[1725466266229,0.40674,2458.4,2458.2,3.2078]
[1725466266428,1.16934,2458.5,2458.2,3.2078]
[1725466266634,3.54149942,2458.6,2458.2,3.2078]
[1725466266635,0.00609942,2458.6,2458.2,3.2078]
[1725466266834,0.40673,2458.5,2458.0,0.4068]
[1725466267330,0.40673,2458.5,2458.4,3.2078]
[1725466267532,0.40676,2458.4,2457.9,0.40682]
[1725466267728,0.40676,2458.4,2458.3,3.2078]
[1725466268425,0.40673,2458.5,2458.3,3.2078]
[1725466268631,0.41281942,2458.6,2458.3,3.2078]
[1725466268827,0.40673,2458.5,2458.3,3.2078]
[1725466269633,0.41281942,2458.6,2458.3,3.2078]
[1725466269934,0.40674,2458.5,2458.3,3.2078]
[1725466270135,0.41281942,2458.6,2458.3,3.2078]
[1725466270429,0.00609942,2458.6,2458.5,0.40673]
[1725466270832,0.00609942,2458.6,2458.5,4.47393]
[1725466271132,0.40663,2459.1,2458.5,10.07329942]
[1725466271429,0.40663,2459.1,2458.8,3.2078]
[1725466271633,0.40663,2459.1,2458.8,3.61447]
[1725466271831,0.40663,2459.1,2458.8,3.2078]
[1725466272034,3.5608,2459.5,2458.8,3.2078]
[1725466272035,3.82643,2459.5,2458.8,3.2078]
[1725466272232,2.03243,2460.0,2459.1,3.61443]
[1725466272233,0.00609942,2459.2,2459.1,3.61443]
[1725466272423,0.7508,2460.1,2459.3,0.40658]
[1725466272629,1.0162,2460.0,2459.8,3.2078]
[1725466272826,0.40654,2459.7,2459.4,4.33818]
[1725466273031,0.40654,2459.7,2459.4,3.9316]
[1725466273226,1.0162,2460.0,2459.4,4.33818]
[1725466273423,0.40654,2459.7,2459.4,3.9316]
[1725466274036,0.40655,2459.6,2459.4,3.9316]
[1725466274532,0.4066,2459.3,2459.1,3.2078]
[1725466274735,0.40659,2459.4,2459.1,3.2078]
[1725466274932,0.4066,2459.3,2459.1,3.2078]
[1725466275134,0.40661,2459.2,2459.1,3.2078]
[1725466276032,1.42314,2459.2,2459.1,3.2078]
[1725466276335,0.40666,2458.9,2458.8,3.2078]
[1725466276536,0.40666,2459.0,2458.8,3.2078]
[1725466276929,0.40662,2459.2,2458.8,3.2078]
[1725466277133,0.40654,2459.7,2459.2,0.4066]
[1725466277336,1.02237942,2459.9,2459.4,3.2078]
[1725466277527,0.40656,2459.5,2459.4,3.2078]
[1725466277838,0.40658,2459.4,2459.2,0.7607]
[1725466278036,1.01641,2459.6,2459.2,0.7607]
[1725466278037,0.40659,2459.3,2459.2,0.7607]
[1725466278239,0.40661,2459.2,2459.1,3.2078]
[1725466278537,0.40661,2459.2,2458.6,0.4067]
[1725466278538,0.40661,2459.2,2458.7,3.61449]
[1725466279039,0.40661,2459.2,2459.1,3.2078]
[1725466279240,0.40665,2459.0,2458.8,3.2078]
[1725466279434,1.01648,2459.4,2458.8,3.2078]
[1725466279435,0.40664,2459.1,2458.8,3.2078]
[1725466279644,0.40665,2459.0,2458.8,3.2078]
[1725466279833,0.40663,2459.1,2458.8,3.2078]
[1725466280139,1.01648,2459.4,2458.8,3.2078]
[1725466280348,0.40664,2459.1,2458.8,3.2078]
[1725466280638,1.01649,2459.3,2458.8,3.2078]
[1725466280639,0.40666,2458.9,2458.8,3.2078]
[1725466280834,0.7208,2459.2,2458.5,3.21389942]
[1725466281040,0.40671,2458.6,2458.5,3.21389942]
[1725466281232,0.4067,2458.7,2458.5,3.21389942]
[1725466281439,0.40671,2458.6,2458.5,3.21389942]
[1725466282131,0.60640146,2458.7,2458.5,3.21389942]
[1725466282338,0.4067,2458.7,2458.5,3.21389942]
[1725466283332,0.40671,2458.6,2458.5,3.21389942]
[1725466283542,0.4067,2458.7,2458.5,3.21389942]
[1725466284041,0.61127215,2458.8,2458.5,3.21389942]
[1725466284339,0.40668,2458.8,2458.5,3.21389942]
[1725466284740,0.40665,2459.0,2458.5,3.21389942]
[1725466285146,0.40665,2459.0,2458.9,3.2078]
[1725466287438,0.40666,2458.9,2458.5,3.21389942]
[1725466288038,0.40667,2458.9,2458.5,3.21389942]
[1725466288239,1.01658,2459.1,2458.5,3.21389942]
[1725466288444,0.40666,2459.0,2458.5,3.21389942]
[1725466288647,0.40666,2458.9,2458.5,3.21389942]
[1725466288849,0.40668,2458.8,2458.5,3.21389942]
[1725466289144,1.01639,2459.6,2458.8,0.40667]
[1725466289351,0.1936567,2459.7,2458.9,4.699]
[1725466289546,2.5377,2459.8,2459.2,3.2078]
[1725466289547,0.40655,2459.6,2459.2,3.2078]
[1725466289745,0.40656,2459.6,2459.5,3.2078]
[1725466289938,0.40656,2459.6,2459.2,3.2078]
[1725466290142,1.01633,2459.7,2459.5,3.2078]
[1725466290338,1.01633,2459.7,2459.1,3.61443]
[1725466290643,1.01637,2459.6,2458.9,1.4912]
[1725466290838,1.01644,2459.5,2459.4,3.2078]
[1725466291041,1.423,2459.5,2459.4,3.2078]
[1725466291246,0.40661,2459.2,2459.1,3.00689942]
[1725466292242,0.40661,2459.2,2458.9,0.7548]
[1725466293052,0.40659,2459.3,2459.1,3.2078]
[1725466293250,0.40662,2459.2,2458.9,0.7548]
[1725466293555,0.40666,2459.0,2458.8,3.2078]
[1725466293756,0.40666,2459.0,2458.9,3.2078]
[1725466294145,0.40666,2459.0,2458.9,3.0078]
[1725466294351,0.40666,2459.0,2458.5,3.21389942]
[1725466294548,0.4067,2458.7,2458.5,3.21389942]
[1725466294753,4.02671566,2459.0,2458.5,3.21389942]
[1725466295056,0.7468,2459.1,2458.8,3.2078]
[1725466295247,0.7468,2459.5,2458.8,3.2078]
[1725466295557,0.7468,2459.5,2459.1,3.2078]
[1725466295748,0.40658,2459.4,2459.1,3.2078]
[1725466296063,0.40658,2459.4,2459.1,3.9832]
[1725466296447,2.49612,2459.8,2459.1,3.9832]
[1725466296643,0.40654,2459.7,2459.4,3.2078]
[1725466297049,0.7331,2459.8,2459.4,3.2078]
[1725466297354,0.40654,2459.7,2459.4,3.2078]
[1725466297555,0.40655,2459.6,2459.4,3.2078]
[1725466298547,0.40656,2459.5,2459.4,3.2078]
[1725466298948,1.42297,2459.5,2459.4,3.2078]
[1725466299255,10.0656,2459.5,2458.9,3.2078]
[1725466299456,0.40664,2459.0,2458.9,3.2078]
[1725466299653,0.40664,2459.0,2458.5,0.00609942]
[1725466299859,0.40671,2458.7,2458.5,0.00609942]
[1725466300369,0.40671,2458.7,2458.6,3.2078]
[1725466301158,0.40671,2458.6,2458.5,0.00609942]
[1725466301349,0.4067,2458.7,2458.5,3.21389942]
[1725466301552,0.60064057,2459.0,2458.5,3.21389942]
[1725466301752,0.40665,2459.0,2458.5,3.21389942]
[1725466301948,0.40666,2458.9,2458.5,3.62061942]
[1725466302459,0.40666,2458.9,2458.8,3.2078]
[1725466302653,0.40666,2458.9,2458.5,4.40991942]
[1725466302854,2.81,2459.2,2458.8,3.2078]
[1725466303051,0.40664,2459.0,2458.8,3.2078]
[1725466303251,3.82641,2459.5,2458.9,3.2078]
[1725466303448,0.40662,2459.2,2458.9,3.2078]
[1725466303757,0.40661,2459.3,2458.9,3.61445]
[1725466304055,0.40659,2459.3,2459.2,3.2078]
[1725466304254,0.4066,2459.3,2459.2,3.2078]
[1725466304960,0.4066,2459.3,2458.7,3.9315]
[1725466305165,0.4066,2459.3,2458.5,0.79539942]
[1725466305166,1.01658,2459.1,2458.5,4.00319942]
[1725466305472,0.4067,2458.7,2458.5,0.79539942]
[1725466305654,6.0178,2458.8,2457.4,3.2078]
[1725466305859,6.0178,2458.8,2457.2,0.4039459]
[1725466305860,0.40688,2457.6,2457.2,1.4788]
[1725466306057,0.40687,2457.7,2457.2,5.09353]
[1725466306253,2.81,2458.0,2457.3,0.40692]
[1725466306254,0.40684,2457.8,2457.3,0.40692]
[1725466306453,0.20676317,2457.9,2457.5,3.2078]
[1725466306650,3.2078,2457.8,2457.2,4.6866]
[1725466306857,1.42408,2457.6,2457.5,0.00609942]
[1725466307154,4.83394539,2457.6,2457.5,0.00609942]
[1725466307356,8.90274539,2457.6,2457.5,0.00609942]
[1725466308552,14.90274539,2457.6,2457.5,0.00609942]
[1725466308760,0.40696,2457.1,2456.6,0.7257]
[1725466308963,0.40695,2457.2,2456.6,1.13274]
[1725466309152,0.40693,2457.3,2456.6,1.13274]
[1725466309555,1.01724,2457.5,2456.6,0.7257]
[1725466309757,2.81,2457.4,2456.8,3.2078]
[1725466310058,3.2078,2457.3,2456.8,3.2078]
[1725466310254,0.40702,2456.7,2456.6,0.7257]
[1725466310459,0.40701,2456.8,2456.5,0.728]
[1725466310767,0.40703,2456.7,2456.5,0.728]
[1725466311267,2.81,2457.1,2456.5,0.728]
[1725466311268,0.40704,2456.6,2456.5,0.728]
[1725466311557,0.40704,2456.7,2456.5,0.728]
[1725466311764,0.40704,2456.6,2456.5,0.728]
[1725466311973,0.40708,2456.4,2456.2,3.2078]
[1725466312466,0.40708,2456.4,2455.9,4.39175]
[1725466312857,0.40709,2456.3,2455.9,3.9846]
[1725466313056,0.40709,2456.3,2456.2,3.2078]
[1725466313262,0.40709,2456.3,2455.9,3.9846]
[1725466313466,0.40709,2456.3,2456.2,3.2078]
[1725466313771,0.40709,2456.3,2455.9,8.46295]
[1725466313956,0.40708,2456.4,2455.9,4.39175]
[1725466314154,0.40708,2456.4,2456.2,3.2078]
[1725466314558,0.41315942,2456.5,2456.2,3.2078]
[1725466314951,0.40708,2456.4,2456.2,3.2078]
[1725466315155,0.00609942,2456.5,2456.2,3.2078]
[1725466315356,0.00609942,2456.5,2456.2,0.4071]
[1725466315357,0.41316942,2456.5,2456.2,0.4071]
[1725466315667,0.00609942,2456.5,2456.0,0.40713]
[1725466315862,0.00609942,2456.5,2456.3,3.2078]
[1725466316066,0.41316942,2456.5,2456.2,0.40711]
[1725466316269,0.41316942,2456.5,2456.4,3.2078]
[1725466316865,0.00609942,2456.5,2456.4,3.2078]
[1725466317560,0.41315942,2456.5,2456.4,3.2078]
[1725466317964,1.43080942,2456.5,2456.4,3.2078]
[1725466319267,0.40709,2456.3,2456.2,3.2078]
[1725466319465,0.40714,2456.1,2455.9,3.9846]
[1725466319859,0.40714,2456.0,2455.9,3.9846]
[1725466320571,0.40714,2456.1,2455.9,3.9846]
[1725466320771,0.40714,2456.0,2455.9,3.9846]
[1725466321265,0.40714,2456.0,2455.9,0.7768]
[1725466321563,1.0179,2455.9,2455.5,3.2078]
[1725466321764,1.01786,2456.0,2455.5,3.2078]
[1725466321969,0.40718,2455.8,2455.5,3.61501]
[1725466322158,0.4072,2455.7,2455.5,3.2078]
[1725466322356,0.40717,2455.9,2455.6,0.4072]
[1725466322556,1.01786,2456.0,2455.5,3.2078]
[1725466322766,0.40718,2455.8,2455.5,3.2078]
[1725466322963,0.40718,2455.8,2455.6,0.4072]
[1725466323464,0.40717,2455.9,2455.5,3.2078]
[1725466323664,6.0178,2456.4,2455.8,3.2078]
[1725466323866,0.40712,2456.1,2455.9,0.7577]
[1725466324057,7.03551,2456.4,2455.9,0.7577]
[1725466324058,0.40714,2456.0,2455.9,0.7577]
[1725466325769,0.40713,2456.1,2455.9,0.7577]
[1725466325975,0.40714,2456.0,2455.9,0.7577]
[1725466326168,0.40719,2455.8,2455.5,3.61501]
[1725466326364,0.40721,2455.7,2455.5,3.2078]
[1725466326564,0.40718,2455.8,2455.6,0.4072]
[1725466326967,0.40719,2455.7,2455.5,3.61502]
[1725466327273,0.40724,2455.4,2455.3,0.7388]
[1725466328077,1.42535,2455.4,2455.3,0.7388]
[1725466328267,1.42535,2455.4,2454.8,0.7571]
[1725466328268,1.01815,2455.3,2454.8,3.9649]
[1725466328462,0.40732,2455.0,2454.8,1.5399]
[1725466328666,2.81,2455.5,2454.8,1.5399]
[1725466328667,0.00609942,2455.1,2454.8,4.7477]
[1725466328872,0.00609942,2455.1,2454.8,1.5399]
[1725466329171,0.40732,2454.9,2454.8,1.5399]
[1725466329378,0.00609942,2455.1,2454.8,0.7828]
[1725466329574,0.40731,2455.0,2454.8,0.7828]
[1725466329866,0.40732,2454.9,2454.8,0.7828]
[1725466330472,0.40734,2454.8,2454.7,0.7244]
[1725466330674,0.00609942,2455.1,2454.7,0.7244]
[1725466330675,0.40733,2454.9,2454.7,0.7244]
[1725466331068,0.40733,2454.9,2454.5,3.2078]
[1725466331069,0.40737,2454.7,2454.5,3.2078]
[1725466331279,0.00609942,2455.1,2454.6,1.01844]
[1725466331570,3.40228963,2456.4,2455.0,3.2078]
[1725466331780,3.40228963,2456.4,2455.6,3.2078]
[1725466331781,3.2078,2456.4,2455.6,3.2078]
[1725466332077,2.81,2456.6,2456.0,3.2078]
[1725466332266,0.40708,2456.4,2456.0,3.2078]
[1725466332466,0.40709,2456.3,2456.0,3.21389942]
[1725466332661,0.41317942,2456.4,2456.0,0.00609942]
[1725466332867,0.40709,2456.3,2456.0,0.00609942]
[1725466333273,0.40711,2456.2,2456.0,0.00609942]
[1725466333474,0.40709,2456.3,2456.0,0.00609942]
[1725466333772,0.00609942,2456.4,2456.0,0.00609942]
[1725466333976,0.41317942,2456.4,2456.0,0.00609942]
[1725466334182,0.40709,2456.3,2456.0,0.00609942]
[1725466334382,0.40711,2456.2,2456.0,0.00609942]
[1725466334579,0.40712,2456.1,2456.0,0.00609942]
[1725466334780,0.00609942,2456.4,2456.0,0.00609942]
[1725466335269,0.40712,2456.2,2456.0,0.00609942]
[1725466335477,0.00609942,2456.4,2456.0,0.00609942]
[1725466335677,0.4071,2456.3,2456.0,0.00609942]
[1725466335875,0.00609942,2456.4,2456.0,0.00609942]
[1725466336277,0.40712,2456.1,2456.0,0.00609942]
[1725466336474,0.20458685,2456.2,2456.0,0.00609942]
[1725466336677,1.02378942,2456.4,2456.0,0.00609942]
[1725466336876,0.40712,2456.1,2456.0,0.00609942]
[1725466337769,10.0712,2456.1,2455.5,3.2078]
[1725466337967,10.0712,2456.1,2454.6,1.22550082]
[1725466337968,2.81,2455.8,2455.1,1.5556]
[1725466338173,3.2078,2456.0,2455.2,3.2078]
[1725466338380,0.40719,2455.8,2455.3,0.40726]
[1725466338579,3.2078,2456.0,2455.3,0.40726]
[1725466339077,3.2078,2456.0,2455.2,3.2078]
[1725466339273,0.4072,2455.7,2455.3,0.40725]
[1725466339473,0.40721,2455.6,2455.2,3.2078]
[1725466339777,0.40724,2455.4,2455.2,3.2078]
[1725466339973,2.81,2455.5,2454.9,3.2078]
[1725466340168,0.40726,2455.3,2454.9,3.2078]
[1725466340370,0.40726,2455.3,2454.9,3.61512]
[1725466340778,0.7709,2455.4,2454.9,3.2078]
[1725466341278,0.40728,2455.2,2454.9,3.2078]
[1725466341485,0.40731,2455.0,2454.9,3.2078]
[1725466341878,0.40734,2454.9,2454.5,5.5077]
[1725466342080,0.00609942,2454.9,2454.5,5.91508]
[1725466342286,0.41342942,2454.9,2454.5,5.91508]
[1725466342584,0.40734,2454.8,2454.5,5.91508]
[1725466342782,0.41342942,2454.9,2454.6,0.40737]
[1725466343082,0.00609942,2454.9,2454.5,5.5077]
[1725466343281,0.40736,2454.7,2454.5,5.5077]
[1725466343782,0.40737,2454.6,2454.5,5.5077]
[1725466343978,0.40737,2454.6,2454.5,4.7272]
[1725466344177,0.40737,2454.6,2454.5,3.2078]
[1725466344376,1.01844,2454.6,2454.2,3.61524]
[1725466344575,0.40739,2454.5,2454.2,3.2078]
[1725466345182,3.0177616,2454.9,2454.3,4.0744]
[1725466345183,0.00609942,2454.9,2454.3,4.0744]
[1725466345382,0.00609942,2454.9,2454.5,3.61518]
[1725466345383,0.40735,2454.8,2454.5,3.61518]
[1725466345577,0.40735,2454.8,2454.6,0.40737]
[1725466345776,0.00609942,2454.9,2454.8,0.40734]
[1725466346487,0.41341942,2454.9,2454.8,3.2078]
[1725466346787,1.43173942,2454.9,2454.8,3.2078]
[1725466347084,0.41341942,2454.9,2454.8,3.2078]
[1725466347277,0.00609942,2454.9,2454.8,3.61514]
[1725466347484,0.41341942,2454.9,2454.8,3.2078]
[1725466348697,0.00609942,2454.9,2454.8,3.61514]
[1725466348986,0.41341942,2454.9,2454.8,3.2078]
[1725466349387,0.00609942,2454.9,2454.8,3.61514]
[1725466350587,0.41341942,2454.9,2454.8,3.2078]
[1725466351191,1.43173942,2454.9,2454.8,3.2078]
[1725466353099,0.41341942,2454.9,2454.8,3.2078]
[1725466355002,1.43173942,2454.9,2454.8,3.2078]
[1725466355704,0.00609942,2454.9,2454.8,3.2078]
[1725466355995,0.00609942,2454.9,2454.8,7.68874]
[1725466356197,1.01811,2455.4,2454.8,13.2814]
[1725466356393,0.40726,2455.3,2455.2,0.40727]
[1725466356596,1.01807,2455.5,2455.2,0.40727]
[1725466356793,0.40726,2455.3,2455.2,0.40726]
[1725466356999,0.40731,2455.0,2454.9,1.14862]
[1725466357199,1.01828,2455.0,2454.7,3.21389942]
[1725466357395,0.40734,2454.9,2454.8,0.40733]
[1725466357600,0.40734,2454.8,2454.7,3.21389942]
[1725466358496,1.4257,2454.8,2454.7,3.21389942]
[1725466359696,2.44406,2454.8,2454.7,0.00609942]
[1725466360001,1.4257,2454.8,2454.7,0.00609942]
[1725466360499,5.4993,2454.8,2454.7,0.00609942]
[1725466360701,4.48094,2454.8,2454.7,0.00609942]
[1725466365206,0.40737,2454.6,2454.5,3.2078]
[1725466365811,1.17727,2454.7,2454.5,3.2078]
[1725466366110,0.40735,2454.8,2454.5,3.2078]
[1725466366411,0.40736,2454.7,2454.5,3.2078]
[1725466367314,0.40737,2454.6,2454.5,3.2078]
[1725466367498,0.40736,2454.7,2454.5,3.2078]
[1725466367902,0.40737,2454.6,2454.5,3.2078]
[1725466370511,1.42581,2454.6,2454.5,3.2078]
[1725466370908,5.50021,2454.6,2454.5,3.2078]
[1725466372905,0.40737,2454.6,2454.5,3.2078]
[1725466373311,1.01836,2454.8,2454.5,3.2078]
[1725466373616,0.40737,2454.6,2454.5,3.2078]
[1725466374416,0.40737,2454.7,2454.5,3.2078]
[1725466374611,3.01542531,2454.9,2454.5,3.2078]
[1725466374800,4.03375531,2454.9,2454.5,3.61519]
[1725466375006,0.40734,2454.8,2454.5,3.61519]
[1725466375215,0.40735,2454.8,2454.5,3.61519]
[1725466375812,0.40736,2454.7,2454.5,3.2078]
[1725466376014,0.40736,2454.7,2454.5,3.61518]
[1725466376316,0.40737,2454.6,2454.5,3.2078]
[1725466376811,0.40737,2454.6,2454.5,7.2822]
[1725466377010,0.40737,2454.6,2454.5,3.2078]
[1725466378116,0.40741,2454.4,2454.1,5.17355]
[1725466378611,0.40741,2454.4,2454.2,0.40744]
[1725466379010,0.40742,2454.3,2454.1,5.17355]
[1725466379217,0.40742,2454.3,2454.1,4.7661]
[1725466379413,0.40742,2454.4,2454.2,0.40743]
[1725466379920,0.40739,2454.5,2454.3,4.48182]
[1725466380117,0.40739,2454.5,2454.3,0.40742]
[1725466380315,0.40741,2454.4,2454.2,0.40743]
[1725466380810,0.40743,2454.3,2454.2,4.0744]
[1725466381011,0.40744,2454.2,2454.1,4.7661]
[1725466381514,0.40744,2454.2,2454.1,8.8405]
[1725466381724,0.40744,2454.2,2454.1,5.6327]
[1725466382112,0.40744,2454.2,2454.1,1.5583]
[1725466382314,0.40744,2454.2,2454.1,4.7661]
[1725466383013,0.40744,2454.2,2454.1,1.5583]
[1725466383514,0.40744,2454.2,2454.1,4.7661]
[1725466383825,0.40744,2454.2,2454.1,1.5583]
[1725466384914,0.40743,2454.3,2454.1,4.7661]
[1725466385121,3.12854,2454.4,2454.1,4.7661]
[1725466385320,0.40744,2454.2,2454.1,1.5583]
[1725466385518,0.40744,2454.2,2454.1,4.7661]
[1725466386122,0.40744,2454.2,2454.1,1.5583]
[1725466387215,0.40739,2454.5,2454.2,0.40743]
[1725466387513,0.40739,2454.5,2454.1,4.7661]
[1725466387514,2.11,2454.4,2454.1,4.7661]
[1725466387720,0.40743,2454.3,2454.1,0.7723]
[1725466387921,0.40744,2454.2,2454.1,0.7723]
[1725466388319,0.40744,2454.2,2454.1,3.9801]
[1725466388520,0.40744,2454.2,2454.1,0.7723]
[1725466390923,1.01857,2454.3,2454.1,0.7723]
[1725466390924,0.40741,2454.4,2454.2,0.40743]
[1725466391222,3.12844,2454.6,2454.1,3.9801]
[1725466391429,0.40743,2454.3,2454.1,4.38754]
[1725466391614,1.01848,2454.5,2454.1,3.9801]
[1725466391818,0.40743,2454.3,2454.1,4.38756]
[1725466392219,1.01848,2454.5,2454.1,3.9801]
[1725466392421,0.40741,2454.4,2454.2,0.40743]
[1725466392619,0.40742,2454.3,2454.2,0.40743]
[1725466392920,0.40742,2454.4,2454.2,0.40743]
[1725466393130,0.40742,2454.3,2454.1,3.9801]
[1725466393426,0.40742,2454.3,2454.2,0.40743]
[1725466394018,0.40742,2454.4,2454.3,0.40742]
[1725466394323,0.40741,2454.4,2454.3,0.40742]
[1725466394624,0.40741,2454.4,2454.3,4.0744]
[1725466394826,0.40744,2454.2,2454.1,4.38755]
[1725466395133,0.40741,2454.4,2454.1,3.9801]
[1725466395427,0.40741,2454.4,2454.2,0.40743]
[1725466396423,2.5174,2454.5,2454.4,0.40741]